[Event "*** Qualifier 3: Titled Tuesday 3|2 Blitz"]
[Site "Chess.com"]
[Date "2017.04.18"]
[Round "1"]
[White "Vamostodorecto"]
[Black "daro94"]
[Result "0-1"]
[WhiteElo "2380"]
[BlackElo "2763"]
[TimeControl "180+2"]
[EndTime "13:07:41 PDT"]
[Termination "daro94 won by resignation"]

1. d4 {[%clk 0:03:02]} 1... Nf6 {[%clk 0:03:01.4]} 2. c4 {[%clk 0:03:02.9]} 2...
g6 {[%clk 0:03:01.9]} 3. Nc3 {[%clk 0:03:03.8]} 3... Bg7 {[%clk 0:03:03.2]} 4.
e4 {[%clk 0:03:04.1]} 4... d6 {[%clk 0:03:04.8]} 5. Be2 {[%clk 0:03:05.5]} 5...
O-O {[%clk 0:03:06.1]} 6. Nf3 {[%clk 0:03:05.6]} 6... Na6 {[%clk 0:03:05.5]} 7.
O-O {[%clk 0:03:03.5]} 7... e5 {[%clk 0:03:06.9]} 8. Be3 {[%clk 0:03:03.4]} 8...
c6 {[%clk 0:03:06.7]} 9. dxe5 {[%clk 0:02:50.8]} 9... dxe5 {[%clk 0:03:04.6]}
10. b4 {[%clk 0:02:36.6]} 10... Nxb4 {[%clk 0:02:44.4]} 11. Bc5 {[%clk
0:02:35.1]} 11... Na6 {[%clk 0:02:45.7]} 12. Bxf8 {[%clk 0:02:34.8]} 12... Qxf8
{[%clk 0:02:47.6]} 13. Rb1 {[%clk 0:02:29.1]} 13... Nc5 {[%clk 0:02:44.4]} 14.
Nd2 {[%clk 0:02:25.8]} 14... Be6 {[%clk 0:02:40]} 15. f3 {[%clk 0:02:25.3]}
15... Bh6 {[%clk 0:02:32.4]} 16. Nb3 {[%clk 0:02:20.7]} 16... Nfd7 {[%clk
0:02:21.5]} 17. Kh1 {[%clk 0:02:13]} 17... Bg5 {[%clk 0:02:09.4]} 18. Nxc5
{[%clk 0:02:07.6]} 18... Nxc5 {[%clk 0:02:10.4]} 19. Na4 {[%clk 0:02:07.9]}
19... b6 {[%clk 0:02:07.8]} 20. Nxc5 {[%clk 0:02:03.5]} 20... Qxc5 {[%clk
0:02:09.7]} 21. Qc2 {[%clk 0:01:42.8]} 21... h5 {[%clk 0:02:09.6]} 22. g3 {[%clk
0:01:41.7]} 22... Bh3 {[%clk 0:02:02.8]} 23. Rg1 {[%clk 0:01:27.9]} 23... Qf2
{[%clk 0:01:50.9]} 24. Bd1 {[%clk 0:01:18.3]} 24... Be3 {[%clk 0:01:49.6]} 25.
Qxf2 {[%clk 0:01:09.1]} 25... Bxf2 {[%clk 0:01:51.5]} 26. Rb2 {[%clk 0:01:00]}
26... Bxg1 {[%clk 0:01:48.5]} 27. Kxg1 {[%clk 0:01:01.9]} 27... Rd8 {[%clk
0:01:50]} 28. Ba4 {[%clk 0:01:02.4]} 28... c5 {[%clk 0:01:48.4]} 29. Kf2 {[%clk
0:01:01.1]} 29... Be6 {[%clk 0:01:47.4]} 30. Bb5 {[%clk 0:00:58.6]} 30... Rd4
{[%clk 0:01:47.7]} 31. Rc2 {[%clk 0:00:59.6]} 31... Kg7 {[%clk 0:01:45.8]} 32.
Ke3 {[%clk 0:00:54.5]} 32... f5 {[%clk 0:01:47]} 33. a4 {[%clk 0:00:50.4]} 33...
Kf6 {[%clk 0:01:47.6]} 34. Rc3 {[%clk 0:00:40.6]} 34... Rd1 {[%clk 0:01:36.6]}
35. Rc2 {[%clk 0:00:36.6]} 35... fxe4 {[%clk 0:01:31.2]} 36. fxe4 {[%clk
0:00:36.9]} 36... Re1+ {[%clk 0:01:28.9]} 37. Kd3 {[%clk 0:00:32.9]} 37... Rxe4
{[%clk 0:01:23.2]} 38. Rf2+ {[%clk 0:00:29.2]} 38... Bf5 {[%clk 0:01:24.5]} 39.
Kc3 {[%clk 0:00:23.8]} 39... Re3+ {[%clk 0:01:23.9]} 40. Kb2 {[%clk 0:00:24.2]}
40... e4 {[%clk 0:01:21.8]} 41. a5 {[%clk 0:00:19.2]} 41... bxa5 {[%clk
0:01:21.5]} 42. Rd2 {[%clk 0:00:20.1]} 42... Rd3 {[%clk 0:01:22.7]} 43. Re2
{[%clk 0:00:20.1]} 43... Ke5 {[%clk 0:01:23.3]} 0-1

[Event "*** Qualifier 3: Titled Tuesday 3|2 Blitz"]
[Site "Chess.com"]
[Date "2017.04.18"]
[Round "1"]
[White "jcibarra"]
[Black "PelinGorki"]
[Result "0-1"]
[WhiteElo "2645"]
[BlackElo "2366"]
[TimeControl "180+2"]
[EndTime "13:08:15 PDT"]
[Termination "PelinGorki won by checkmate"]

1. e4 {[%clk 0:02:59.3]} 1... d6 {[%clk 0:03:01.2]} 2. d4 {[%clk 0:02:58.2]}
2... Nf6 {[%clk 0:03:02.8]} 3. Nc3 {[%clk 0:02:59.8]} 3... c6 {[%clk 0:03:04.3]}
4. f4 {[%clk 0:03:00.1]} 4... Qa5 {[%clk 0:03:05.3]} 5. Bd3 {[%clk 0:03:00.5]}
5... e5 {[%clk 0:03:06.6]} 6. Nf3 {[%clk 0:03:01.9]} 6... exd4 {[%clk
0:03:08.1]} 7. Nxd4 {[%clk 0:03:02.6]} 7... Qb6 {[%clk 0:03:10]} 8. Nb3 {[%clk
0:02:52.2]} 8... a5 {[%clk 0:03:10.9]} 9. a4 {[%clk 0:02:50.8]} 9... Be7 {[%clk
0:03:10.1]} 10. Qe2 {[%clk 0:02:49.6]} 10... O-O {[%clk 0:03:07.9]} 11. Be3
{[%clk 0:02:49.3]} 11... Qc7 {[%clk 0:03:09.1]} 12. h3 {[%clk 0:02:50.6]} 12...
Na6 {[%clk 0:03:09.1]} 13. g4 {[%clk 0:02:41.7]} 13... Nb4 {[%clk 0:03:09.7]}
14. g5 {[%clk 0:02:40.4]} 14... Nd7 {[%clk 0:03:08.9]} 15. O-O-O {[%clk
0:02:28.4]} 15... Nc5 {[%clk 0:03:01.6]} 16. Nxc5 {[%clk 0:02:27.6]} 16... dxc5
{[%clk 0:03:03.5]} 17. Bc4 {[%clk 0:02:28.9]} 17... Rd8 {[%clk 0:02:36.8]} 18.
f5 {[%clk 0:02:25.4]} 18... b6 {[%clk 0:02:13.9]} 19. g6 {[%clk 0:02:19.9]}
19... Ba6 {[%clk 0:02:04.2]} 20. Qh5 {[%clk 0:02:12.7]} 20... hxg6 {[%clk
0:01:49.2]} 21. fxg6 {[%clk 0:02:11.8]} 21... Bf6 {[%clk 0:01:49.6]} 22. Bxf7+
{[%clk 0:01:48.2]} 22... Kf8 {[%clk 0:01:50.1]} 23. Qf5 {[%clk 0:01:23]} 23...
Qg3 {[%clk 0:01:33.2]} 24. Bf4 {[%clk 0:01:21.2]} 24... Qg2 {[%clk 0:01:33.7]}
25. Bb3 {[%clk 0:00:59.9]} 25... c4 {[%clk 0:01:08.5]} 26. Rhg1 {[%clk
0:00:38.7]} 26... Rxd1+ {[%clk 0:01:09.2]} 27. Rxd1 {[%clk 0:00:38.8]} 27...
cxb3 {[%clk 0:01:05.5]} 28. Rd2 {[%clk 0:00:36.2]} 28... Qf1+ {[%clk 0:01:00.4]}
29. Nd1 {[%clk 0:00:34.4]} 29... bxc2 {[%clk 0:00:51.4]} 30. Bd6+ {[%clk
0:00:30.9]} 30... Kg8 {[%clk 0:00:52.1]} 31. Qe6+ {[%clk 0:00:23.6]} 31... Kh8
{[%clk 0:00:52.9]} 32. Qg4 {[%clk 0:00:25.1]} 32... cxd1=R+ {[%clk 0:00:49.5]}
33. Rxd1 {[%clk 0:00:26]} 33... Qc4+ {[%clk 0:00:35.6]} 34. Kd2 {[%clk
0:00:22.2]} 34... Qd4+ {[%clk 0:00:13.1]} 35. Ke1 {[%clk 0:00:22.8]} 35... Qe3+
{[%clk 0:00:14]} 36. Qe2 {[%clk 0:00:23]} 36... Qxe2# {[%clk 0:00:15.4]} 0-1

[Event "*** Qualifier 3: Titled Tuesday 3|2 Blitz"]
[Site "Chess.com"]
[Date "2017.04.18"]
[Round "1"]
[White "BogdanDeac"]
[Black "armago"]
[Result "1-0"]
[WhiteElo "2512"]
[BlackElo "2168"]
[TimeControl "180+2"]
[EndTime "13:08:15 PDT"]
[Termination "BogdanDeac won by resignation"]

1. d4 {[%clk 0:03:02]} 1... Nf6 {[%clk 0:03:00]} 2. Bf4 {[%clk 0:03:02.8]} 2...
g6 {[%clk 0:02:58.6]} 3. Nc3 {[%clk 0:03:02.3]} 3... d5 {[%clk 0:02:57.3]} 4. e3
{[%clk 0:03:03.2]} 4... Bg7 {[%clk 0:02:58.1]} 5. h4 {[%clk 0:03:04.1]} 5... h6
{[%clk 0:02:56.6]} 6. Nf3 {[%clk 0:03:02.2]} 6... O-O {[%clk 0:02:53.5]} 7. Nb5
{[%clk 0:03:00.1]} 7... Na6 {[%clk 0:02:52.5]} 8. Na3 {[%clk 0:02:58]} 8... Ne4
{[%clk 0:02:49.6]} 9. Nd2 {[%clk 0:02:55.2]} 9... Nxd2 {[%clk 0:02:37.4]} 10.
Qxd2 {[%clk 0:02:54.4]} 10... c5 {[%clk 0:02:39.1]} 11. c3 {[%clk 0:02:51.2]}
11... cxd4 {[%clk 0:02:28.8]} 12. exd4 {[%clk 0:02:51.1]} 12... h5 {[%clk
0:02:25.7]} 13. Bd3 {[%clk 0:02:46.4]} 13... Nc7 {[%clk 0:02:17.2]} 14. Nc2
{[%clk 0:02:46.3]} 14... Ne8 {[%clk 0:02:04.3]} 15. Bh6 {[%clk 0:02:40.1]} 15...
Nd6 {[%clk 0:01:59.4]} 16. Bxg7 {[%clk 0:02:35.3]} 16... Kxg7 {[%clk 0:02:01.3]}
17. Ne3 {[%clk 0:02:36.4]} 17... e6 {[%clk 0:01:56.1]} 18. f3 {[%clk 0:02:34.9]}
18... Qf6 {[%clk 0:01:47.8]} 19. O-O-O {[%clk 0:02:31.2]} 19... b5 {[%clk
0:01:47.7]} 20. g4 {[%clk 0:02:31]} 20... Rh8 {[%clk 0:01:44.1]} 21. Rdf1 {[%clk
0:02:29.4]} 21... Bd7 {[%clk 0:01:35.7]} 22. f4 {[%clk 0:02:26.8]} 22... hxg4
{[%clk 0:01:04.5]} 23. Nxg4 {[%clk 0:02:25.5]} 23... Qe7 {[%clk 0:01:05.5]} 24.
Ne5 {[%clk 0:02:26.3]} 24... Rac8 {[%clk 0:00:54.4]} 25. Kb1 {[%clk 0:02:20.1]}
25... a5 {[%clk 0:00:54.1]} 26. Rfg1 {[%clk 0:02:17.3]} 26... Kf8 {[%clk
0:00:54.2]} 27. Rxg6 {[%clk 0:02:04.5]} 27... Be8 {[%clk 0:00:44.6]} 28. Rg4
{[%clk 0:01:57.9]} 28... f5 {[%clk 0:00:41.5]} 29. Rg5 {[%clk 0:01:55.9]} 29...
Nc4 {[%clk 0:00:21.3]} 30. Bxc4 {[%clk 0:01:54.5]} 30... bxc4 {[%clk 0:00:23.2]}
31. Qg2 {[%clk 0:01:54.9]} 31... Rb8 {[%clk 0:00:22.8]} 32. h5 {[%clk
0:01:53.3]} 32... a4 {[%clk 0:00:21.4]} 33. Rg1 {[%clk 0:01:33.7]} 33... Qh7
{[%clk 0:00:17.1]} 34. a3 {[%clk 0:01:22]} 34... Rb7 {[%clk 0:00:16.7]} 35. h6
{[%clk 0:01:13.5]} 35... Qxh6 {[%clk 0:00:15.3]} 36. Rg8+ {[%clk 0:01:14]} 36...
Rxg8 {[%clk 0:00:16.6]} 37. Qxg8+ {[%clk 0:01:14]} 37... Ke7 {[%clk 0:00:17.7]}
38. Qg7+ {[%clk 0:01:12.5]} 38... Kd6 {[%clk 0:00:17.5]} 39. Qxh6 {[%clk
0:01:13.1]} 1-0

[Event "*** Qualifier 3: Titled Tuesday 3|2 Blitz"]
[Site "Chess.com"]
[Date "2017.04.18"]
[Round "1"]
[White "MyleneFarmer"]
[Black "iturrizaga"]
[Result "0-1"]
[WhiteElo "2325"]
[BlackElo "2629"]
[TimeControl "180+2"]
[EndTime "13:08:16 PDT"]
[Termination "iturrizaga won on time"]

1. d4 {[%clk 0:03:02]} 1... Nf6 {[%clk 0:02:24.8]} 2. Nf3 {[%clk 0:03:00.3]}
2... b6 {[%clk 0:02:25.7]} 3. c4 {[%clk 0:02:59.3]} 3... Bb7 {[%clk 0:02:27.6]}
4. g3 {[%clk 0:03:00.9]} 4... c5 {[%clk 0:02:27.9]} 5. d5 {[%clk 0:02:58.8]}
5... b5 {[%clk 0:02:28.9]} 6. Nc3 {[%clk 0:02:55.8]} 6... b4 {[%clk 0:02:20.6]}
7. Nb1 {[%clk 0:02:45.9]} 7... e6 {[%clk 0:02:21.8]} 8. dxe6 {[%clk 0:02:45.7]}
8... fxe6 {[%clk 0:02:23.7]} 9. Bg2 {[%clk 0:02:46.6]} 9... Be7 {[%clk
0:02:24.6]} 10. O-O {[%clk 0:02:47.8]} 10... O-O {[%clk 0:02:25.7]} 11. Bf4
{[%clk 0:02:48.1]} 11... Qb6 {[%clk 0:02:26.5]} 12. Nbd2 {[%clk 0:02:48.1]}
12... Nc6 {[%clk 0:02:27.2]} 13. Qc2 {[%clk 0:02:48.2]} 13... Rad8 {[%clk
0:02:27.7]} 14. Rfd1 {[%clk 0:02:44.5]} 14... d5 {[%clk 0:02:28.5]} 15. e3
{[%clk 0:02:31.1]} 15... Rd7 {[%clk 0:02:20.1]} 16. e4 {[%clk 0:01:58.1]} 16...
d4 {[%clk 0:02:12.4]} 17. Ne1 {[%clk 0:01:56.6]} 17... e5 {[%clk 0:02:11.2]} 18.
Bg5 {[%clk 0:01:57.2]} 18... d3 {[%clk 0:02:03.8]} 19. Nxd3 {[%clk 0:01:51.5]}
19... Nd4 {[%clk 0:02:04.5]} 20. Qb1 {[%clk 0:01:50.1]} 20... Ng4 {[%clk
0:01:55]} 21. Bxe7 {[%clk 0:01:46.8]} 21... Rxe7 {[%clk 0:01:47]} 22. Re1 {[%clk
0:01:10.1]} 22... Qh6 {[%clk 0:01:39.5]} 23. Nf1 {[%clk 0:01:04.4]} 23... Ref7
{[%clk 0:01:27.8]} 24. Qc1 {[%clk 0:00:35.8]} 24... Qd6 {[%clk 0:00:50.3]} 25.
Qg5 {[%clk 0:00:25.5]} 25... Nxf2 {[%clk 0:00:30.8]} 26. Qxe5 {[%clk 0:00:26.1]}
26... Nh3+ {[%clk 0:00:20.2]} 27. Kh1 {[%clk 0:00:19.2]} 27... Nf2+ {[%clk
0:00:19.9]} 28. Kg1 {[%clk 0:00:20.4]} 28... Qh6 {[%clk 0:00:20]} 29. Nf4 {[%clk
0:00:13.9]} 29... Rxf4 {[%clk 0:00:14.4]} 30. Ne3 {[%clk 0:00:06.4]} 30... Nh3+
{[%clk 0:00:13.2]} 31. Bxh3 {[%clk 0:00:07.6]} 31... Nf3+ {[%clk 0:00:14.2]} 32.
Kg2 {[%clk 0:00:07.2]} 32... Nxe5 {[%clk 0:00:16.1]} 33. gxf4 {[%clk 0:00:07.2]}
33... Bxe4+ {[%clk 0:00:17.8]} 0-1

[Event "*** Qualifier 3: Titled Tuesday 3|2 Blitz"]
[Site "Chess.com"]
[Date "2017.04.18"]
[Round "1"]
[White "biostatistician"]
[Black "FearlessKing64"]
[Result "1-0"]
[WhiteElo "2476"]
[BlackElo "2166"]
[TimeControl "180+2"]
[EndTime "13:08:19 PDT"]
[Termination "biostatistician won by resignation"]

1. d4 {[%clk 0:03:02]} 1... Nf6 {[%clk 0:02:59.9]} 2. Nf3 {[%clk 0:03:03.9]}
2... g6 {[%clk 0:03:00.3]} 3. c4 {[%clk 0:03:05.5]} 3... Bg7 {[%clk 0:02:59.4]}
4. Nc3 {[%clk 0:03:07.4]} 4... d5 {[%clk 0:02:59.2]} 5. cxd5 {[%clk 0:03:09.3]}
5... Nxd5 {[%clk 0:03:00]} 6. e4 {[%clk 0:03:11]} 6... Nxc3 {[%clk 0:03:01]} 7.
bxc3 {[%clk 0:03:12.9]} 7... c5 {[%clk 0:03:02.1]} 8. Be3 {[%clk 0:03:14.2]}
8... Qa5 {[%clk 0:03:02.4]} 9. Qd2 {[%clk 0:03:15.3]} 9... O-O {[%clk
0:03:03.2]} 10. Rc1 {[%clk 0:03:14.9]} 10... cxd4 {[%clk 0:03:02.7]} 11. cxd4
{[%clk 0:03:16.8]} 11... Qxd2+ {[%clk 0:03:04]} 12. Nxd2 {[%clk 0:03:18.5]}
12... Rd8 {[%clk 0:02:58.2]} 13. Nb3 {[%clk 0:03:19.4]} 13... b6 {[%clk
0:02:52.5]} 14. Bd3 {[%clk 0:03:13.8]} 14... a5 {[%clk 0:02:45.1]} 15. Ke2
{[%clk 0:03:02.3]} 15... Na6 {[%clk 0:02:24.8]} 16. a3 {[%clk 0:02:27.1]} 16...
a4 {[%clk 0:02:19.7]} 17. Nd2 {[%clk 0:02:14.2]} 17... Bxd4 {[%clk 0:02:16.3]}
18. Bxd4 {[%clk 0:01:58.8]} 18... Rxd4 {[%clk 0:02:15.8]} 19. Rxc8+ {[%clk
0:01:59.9]} 19... Rxc8 {[%clk 0:02:14.5]} 20. Bxa6 {[%clk 0:02:01.8]} 20... Rc2
{[%clk 0:02:15]} 21. Bd3 {[%clk 0:02:02.7]} 21... Rc3 {[%clk 0:02:07.5]} 22. Bb1
{[%clk 0:01:39.4]} 22... Rxa3 {[%clk 0:02:03.2]} 23. Rc1 {[%clk 0:01:39.7]}
23... b5 {[%clk 0:01:55.4]} 24. Nf3 {[%clk 0:01:02.6]} 24... Rb4 {[%clk
0:01:45.2]} 25. Bd3 {[%clk 0:00:49.4]} 25... Rb2+ {[%clk 0:01:40.3]} 26. Ke3
{[%clk 0:00:50.2]} 26... Rbb3 {[%clk 0:01:08.7]} 27. Rd1 {[%clk 0:00:51]} 27...
b4 {[%clk 0:01:06.1]} 28. Nd4 {[%clk 0:00:50.7]} 28... Rb2 {[%clk 0:00:58.5]}
29. Rc1 {[%clk 0:00:45.5]} 29... Raa2 {[%clk 0:00:42.1]} 30. Rc7 {[%clk
0:00:40.8]} 30... e6 {[%clk 0:00:26]} 31. Rb7 {[%clk 0:00:28.2]} 31... b3 {[%clk
0:00:22.4]} 32. f4 {[%clk 0:00:26.9]} 32... Rxg2 {[%clk 0:00:23.1]} 33. f5
{[%clk 0:00:28]} 33... gxf5 {[%clk 0:00:21.4]} 34. exf5 {[%clk 0:00:29.9]} 34...
Kg7 {[%clk 0:00:22.7]} 35. fxe6 {[%clk 0:00:30.1]} 35... Rxh2 {[%clk 0:00:22.7]}
36. e7 {[%clk 0:00:29.1]} 36... Rh3+ {[%clk 0:00:22.2]} 37. Ke4 {[%clk
0:00:29.3]} 37... Rh1 {[%clk 0:00:20.6]} 38. Ne6+ {[%clk 0:00:29.7]} 38... fxe6
{[%clk 0:00:16.5]} 39. e8=Q+ {[%clk 0:00:31.6]} 1-0

[Event "*** Qualifier 3: Titled Tuesday 3|2 Blitz"]
[Site "Chess.com"]
[Date "2017.04.18"]
[Round "1"]
[White "ka1ser64"]
[Black "Izoria123"]
[Result "0-1"]
[WhiteElo "2332"]
[BlackElo "2635"]
[TimeControl "180+2"]
[EndTime "13:08:31 PDT"]
[Termination "Izoria123 won by resignation"]

1. d4 {[%clk 0:03:02]} 1... d6 {[%clk 0:02:58.3]} 2. Nf3 {[%clk 0:03:02.1]} 2...
g6 {[%clk 0:02:58.6]} 3. c4 {[%clk 0:03:03.3]} 3... Bg7 {[%clk 0:03:00.1]} 4.
Nc3 {[%clk 0:03:04.8]} 4... Bg4 {[%clk 0:03:00.4]} 5. e3 {[%clk 0:03:04.8]} 5...
c5 {[%clk 0:03:00.1]} 6. Be2 {[%clk 0:03:05]} 6... cxd4 {[%clk 0:03:00.9]} 7.
exd4 {[%clk 0:03:05.4]} 7... Nc6 {[%clk 0:03:01.6]} 8. Be3 {[%clk 0:03:03.8]}
8... Nh6 {[%clk 0:03:01.7]} 9. Qa4 {[%clk 0:02:18.4]} 9... Qd7 {[%clk
0:02:49.4]} 10. Rd1 {[%clk 0:02:09.4]} 10... Nf5 {[%clk 0:02:48.2]} 11. O-O
{[%clk 0:02:05.1]} 11... Bxf3 {[%clk 0:02:33.2]} 12. Bxf3 {[%clk 0:02:05.4]}
12... Nfxd4 {[%clk 0:02:30.1]} 13. Bxc6 {[%clk 0:01:56.6]} 13... Nxc6 {[%clk
0:02:29]} 14. c5 {[%clk 0:01:57.8]} 14... O-O {[%clk 0:01:58.3]} 15. cxd6 {[%clk
0:01:58.6]} 15... exd6 {[%clk 0:02:00.2]} 16. Rd5 {[%clk 0:01:48.7]} 16... Ne5
{[%clk 0:01:28]} 17. Qxd7 {[%clk 0:01:47.1]} 17... Nxd7 {[%clk 0:01:29.9]} 18.
Rxd6 {[%clk 0:01:48.4]} 18... Ne5 {[%clk 0:01:30.1]} 19. b3 {[%clk 0:00:58.9]}
19... Ng4 {[%clk 0:01:10.7]} 20. Rd3 {[%clk 0:00:37]} 20... Nxe3 {[%clk
0:01:05.8]} 21. fxe3 {[%clk 0:00:35.1]} 21... Rac8 {[%clk 0:00:38]} 22. Ne4
{[%clk 0:00:26.4]} 22... Rc7 {[%clk 0:00:23.6]} 23. Rfd1 {[%clk 0:00:21.7]}
23... Be5 {[%clk 0:00:19.2]} 24. g3 {[%clk 0:00:20.4]} 24... Kg7 {[%clk
0:00:20]} 25. Kg2 {[%clk 0:00:21.6]} 25... Re8 {[%clk 0:00:20.6]} 26. Ng5 {[%clk
0:00:22.4]} 26... Bf6 {[%clk 0:00:21.1]} 27. Nf3 {[%clk 0:00:23.2]} 27... Rc2+
{[%clk 0:00:21.8]} 28. R1d2 {[%clk 0:00:23.7]} 28... Rc7 {[%clk 0:00:21.6]} 29.
Kf2 {[%clk 0:00:24.3]} 29... Rce7 {[%clk 0:00:22.6]} 30. Rc2 {[%clk 0:00:24.6]}
30... Be5 {[%clk 0:00:23.2]} 31. Rc4 {[%clk 0:00:25.4]} 31... Bc7 {[%clk
0:00:23.1]} 32. Rdc3 {[%clk 0:00:25.8]} 32... Bb6 {[%clk 0:00:24.3]} 33. Nd4
{[%clk 0:00:27.1]} 33... h5 {[%clk 0:00:25]} 34. a4 {[%clk 0:00:27.7]} 34... a6
{[%clk 0:00:25.7]} 35. Rd3 {[%clk 0:00:27.2]} 35... Re4 {[%clk 0:00:24.3]} 36.
Rb4 {[%clk 0:00:25.6]} 36... Bc5 {[%clk 0:00:23.3]} 37. Rxb7 {[%clk 0:00:26.1]}
37... Rxe3 {[%clk 0:00:24.1]} 38. Rd2 {[%clk 0:00:06.4]} 38... R3e4 {[%clk
0:00:23.4]} 39. Rd7 {[%clk 0:00:07.8]} 39... Rxd4 {[%clk 0:00:23.5]} 40. R2xd4
{[%clk 0:00:08]} 40... Re4 {[%clk 0:00:24.6]} 41. Kf3 {[%clk 0:00:09.3]} 41...
Rxd4 {[%clk 0:00:25.8]} 42. Rc7 {[%clk 0:00:10.6]} 42... Bb4 {[%clk 0:00:26.5]}
43. Rc6 {[%clk 0:00:10.8]} 43... a5 {[%clk 0:00:27.4]} 0-1

[Event "*** Qualifier 3: Titled Tuesday 3|2 Blitz"]
[Site "Chess.com"]
[Date "2017.04.18"]
[Round "1"]
[White "Hikaru"]
[Black "mwpchess"]
[Result "0-1"]
[WhiteElo "2901"]
[BlackElo "2398"]
[TimeControl "180+2"]
[EndTime "13:08:37 PDT"]
[Termination "mwpchess won by checkmate"]

1. d4 {[%clk 0:03:02]} 1... Nf6 {[%clk 0:03:00.3]} 2. Bg5 {[%clk 0:03:02.1]}
2... d5 {[%clk 0:02:59.5]} 3. e3 {[%clk 0:03:02.9]} 3... c6 {[%clk 0:02:59.1]}
4. Nd2 {[%clk 0:03:01.8]} 4... Nbd7 {[%clk 0:02:54.5]} 5. c4 {[%clk 0:03:02.4]}
5... g6 {[%clk 0:02:45.9]} 6. cxd5 {[%clk 0:03:01.8]} 6... cxd5 {[%clk
0:02:46.9]} 7. Bd3 {[%clk 0:03:01.2]} 7... Bg7 {[%clk 0:02:47.3]} 8. Ngf3 {[%clk
0:03:02.4]} 8... O-O {[%clk 0:02:47.4]} 9. O-O {[%clk 0:03:03]} 9... b6 {[%clk
0:02:19.1]} 10. a4 {[%clk 0:03:01.1]} 10... a5 {[%clk 0:02:18.5]} 11. Qe2 {[%clk
0:03:00.8]} 11... Bb7 {[%clk 0:02:18]} 12. Bb5 {[%clk 0:03:01.8]} 12... Rc8
{[%clk 0:02:16.3]} 13. Rfc1 {[%clk 0:03:01.8]} 13... Nb8 {[%clk 0:02:00.1]} 14.
Ne5 {[%clk 0:03:01.8]} 14... Qd6 {[%clk 0:01:54.6]} 15. Bf4 {[%clk 0:03:01.9]}
15... Qe6 {[%clk 0:01:49.3]} 16. h3 {[%clk 0:03:00.9]} 16... Nfd7 {[%clk
0:01:48]} 17. Ndf3 {[%clk 0:02:59.2]} 17... Nxe5 {[%clk 0:01:46.4]} 18. dxe5
{[%clk 0:03:01.1]} 18... Rxc1+ {[%clk 0:01:38.8]} 19. Rxc1 {[%clk 0:03:01]}
19... Rc8 {[%clk 0:01:39.3]} 20. Qd2 {[%clk 0:03:02]} 20... Rxc1+ {[%clk
0:01:37.7]} 21. Qxc1 {[%clk 0:03:03.9]} 21... Qc8 {[%clk 0:01:37.8]} 22. Qxc8+
{[%clk 0:03:03]} 22... Bxc8 {[%clk 0:01:38.2]} 23. e6 {[%clk 0:03:04.9]} 23...
Na6 {[%clk 0:01:32.7]} 24. Bd7 {[%clk 0:03:02.3]} 24... Bb7 {[%clk 0:01:29.3]}
25. exf7+ {[%clk 0:03:03.3]} 25... Kxf7 {[%clk 0:01:29.5]} 26. Ng5+ {[%clk
0:03:05.2]} 26... Kg8 {[%clk 0:01:23.5]} 27. Be6+ {[%clk 0:03:04.6]} 27... Kf8
{[%clk 0:01:24.3]} 28. Nxh7+ {[%clk 0:02:57]} 28... Ke8 {[%clk 0:01:25.1]} 29.
Ng5 {[%clk 0:02:58.9]} 29... Nc5 {[%clk 0:01:13.6]} 30. Bf7+ {[%clk 0:02:59.5]}
30... Kd7 {[%clk 0:01:14]} 31. Bxg6 {[%clk 0:03:00.3]} 31... Bxb2 {[%clk
0:01:13.6]} 32. h4 {[%clk 0:02:52.7]} 32... Nxa4 {[%clk 0:01:13.3]} 33. Bf5+
{[%clk 0:02:52.9]} 33... Ke8 {[%clk 0:01:06.9]} 34. h5 {[%clk 0:02:53.7]} 34...
Nc5 {[%clk 0:01:07]} 35. h6 {[%clk 0:02:50.2]} 35... a4 {[%clk 0:01:04.9]} 36.
h7 {[%clk 0:02:51.5]} 36... a3 {[%clk 0:01:04.8]} 37. Bb1 {[%clk 0:02:46.3]}
37... Ba6 {[%clk 0:00:54]} 38. Nf3 {[%clk 0:02:45]} 38... Bd3 {[%clk 0:00:39.9]}
39. Bxd3 {[%clk 0:02:19.4]} 39... a2 {[%clk 0:00:37.8]} 40. Bb5+ {[%clk
0:02:20.1]} 40... Kd8 {[%clk 0:00:35.7]} 41. Ng5 {[%clk 0:02:19.1]} 41... a1=Q+
{[%clk 0:00:35.7]} 42. Kh2 {[%clk 0:02:21]} 42... Bh8 {[%clk 0:00:30.7]} 43. Bc6
{[%clk 0:02:18.9]} 43... Qf6 {[%clk 0:00:28.1]} 44. Bxd5 {[%clk 0:02:20.2]}
44... e5 {[%clk 0:00:20.7]} 45. Nf7+ {[%clk 0:02:18.7]} 45... Ke8 {[%clk
0:00:19.5]} 46. Nxe5 {[%clk 0:02:16.3]} 46... Qh4+ {[%clk 0:00:19]} 47. Kg1
{[%clk 0:02:17.8]} 47... Qxh7 {[%clk 0:00:19.4]} 48. Bc6+ {[%clk 0:02:19.4]}
48... Kd8 {[%clk 0:00:19.2]} 49. Nc4 {[%clk 0:02:19.3]} 49... Qb1+ {[%clk
0:00:17.8]} 50. Kh2 {[%clk 0:02:20.7]} 50... Qc2 {[%clk 0:00:18.3]} 51. Nxb6
{[%clk 0:02:18.1]} 51... Qxf2 {[%clk 0:00:18.8]} 52. Nd5 {[%clk 0:02:15.5]}
52... Qh4+ {[%clk 0:00:19.1]} 53. Kg1 {[%clk 0:02:16.3]} 53... Nd3 {[%clk
0:00:18.6]} 54. Bc7+ {[%clk 0:02:16.9]} 54... Kc8 {[%clk 0:00:18.6]} 55. Bb5
{[%clk 0:02:18.8]} 55... Qf2+ {[%clk 0:00:18.2]} 56. Kh2 {[%clk 0:02:19.8]}
56... Qh4+ {[%clk 0:00:17.5]} 57. Kg1 {[%clk 0:02:20.7]} 57... Qf2+ {[%clk
0:00:18]} 58. Kh1 {[%clk 0:02:21.3]} 58... Ne1 {[%clk 0:00:18.2]} 59. Nf4 {[%clk
0:02:19]} 59... Kxc7 {[%clk 0:00:15.6]} 60. Bc4 {[%clk 0:02:19.9]} 60... Kb6
{[%clk 0:00:15.8]} 61. Kh2 {[%clk 0:02:20.1]} 61... Be5 {[%clk 0:00:15.8]} 62.
Kh3 {[%clk 0:02:21]} 62... Bxf4 {[%clk 0:00:16.6]} 63. Kg4 {[%clk 0:02:22.9]}
63... Bxe3 {[%clk 0:00:16.3]} 64. Bd5 {[%clk 0:02:23.5]} 64... Nxg2 {[%clk
0:00:16.8]} 65. Bf3 {[%clk 0:02:25.4]} 65... Nf4 {[%clk 0:00:16.7]} 66. Be4
{[%clk 0:02:26.4]} 66... Ne6 {[%clk 0:00:16.5]} 67. Bd5 {[%clk 0:02:27.5]} 67...
Qf4+ {[%clk 0:00:16.9]} 68. Kh3 {[%clk 0:02:28.9]} 68... Ng5+ {[%clk 0:00:17.2]}
69. Kg2 {[%clk 0:02:30.5]} 69... Qf2+ {[%clk 0:00:17.9]} 70. Kh1 {[%clk
0:02:31.7]} 70... Qg1# {[%clk 0:00:18.7]} 0-1